bitfinex/quotes_SOLUSD_20240620
["timestamp","ask_amount","ask_price","bid_price","bid_amount"]
[1718888027872,7.1899,139.09,139.03,6.8579]
[1718888028440,7.1892,139.1,139.03,6.8579]
[1718888029072,7.1897,139.09,139.03,6.8579]
[1718888029441,21.62,139.1,139.03,6.1779]
[1718888029865,7.1903,139.08,139.03,6.1779]
[1718888030265,21.62,139.1,139.03,6.1779]
[1718888030266,7.1913,139.06,139.03,6.1779]
[1718888030453,17.9747,139.09,139.03,6.1779]
[1718888030454,7.1906,139.07,139.03,6.1779]
[1718888032760,26.1,139.1,139.03,6.1779]
[1718888032958,0.34,139.11,139.03,6.1779]
[1718888032959,20.0,139.09,139.03,6.1779]
[1718888033170,7.1908,139.07,139.03,6.1779]
[1718888033351,17.9755,139.08,139.02,15.8996]
[1718888033679,17.9755,139.08,138.99,6.0574]
[1718888033680,7.1925,139.04,138.99,6.0574]
[1718888034545,26.1,139.07,138.98,15.5056]
[1718888034862,41.62,139.06,138.98,15.5056]
[1718888035057,7.1922,139.04,138.98,15.5056]
[1718888035256,7.1918,139.05,138.98,15.5056]
[1718888035565,48.8113,139.06,138.98,15.5056]
[1718888036061,7.1919,139.05,138.98,15.5056]
[1718888039167,41.62,139.06,138.99,0.17]
[1718888039168,20.0,139.06,138.99,0.17]
[1718888039353,20.0,139.08,138.99,0.68]
[1718888039678,7.1909,139.07,138.99,0.68]
[1718888039863,20.0,139.06,138.99,0.68]
[1718888040069,20.0,139.06,139.0,6.5784]
[1718888040278,7.1899,139.09,139.01,0.68]
[1718888040455,27.1899,139.09,139.01,0.68]
[1718888040779,27.1899,139.09,139.01,0.17]
[1718888040780,20.0,139.09,139.01,0.17]
[1718888040977,20.0,139.09,139.0,6.5784]
[1718888041152,7.1902,139.08,139.01,0.51]
[1718888041353,20.0,139.09,139.01,0.51]
[1718888041354,7.1906,139.07,139.01,0.17]
[1718888041555,7.1912,139.06,139.0,6.5784]
[1718888041765,7.1908,139.07,139.0,6.5784]
[1718888042570,7.1902,139.08,139.0,6.5784]
[1718888042945,27.1897,139.09,139.01,0.34]
[1718888043265,27.1897,139.09,139.01,0.51]
[1718888044149,41.62,139.09,139.0,6.7484]
[1718888044350,7.1913,139.06,139.0,6.5784]
[1718888044868,59.595,139.09,139.0,6.5784]
[1718888044869,7.1918,139.05,139.0,6.5784]
[1718888045460,7.1919,139.05,139.0,6.5784]
[1718888045766,7.1913,139.06,139.0,6.5784]
[1718888047362,7.1917,139.05,139.0,6.5784]
[1718888047772,37.9743,139.09,139.0,6.5784]
[1718888047773,20.0,139.09,139.0,6.5784]
[1718888048080,7.1903,139.08,139.01,0.68]
[1718888048283,20.0,139.09,139.01,0.51]
[1718888048456,7.1914,139.06,139.0,6.5784]
[1718888048857,7.1908,139.07,139.0,6.5784]
[1718888049177,7.1908,139.07,139.01,0.17]
[1718888049485,20.51,139.1,139.01,0.17]
[1718888049486,7.1903,139.08,139.01,0.17]
[1718888050089,7.1907,139.07,139.01,0.17]
[1718888050259,7.1903,139.08,139.01,0.17]
[1718888051385,7.1903,139.08,139.01,0.34]
[1718888051680,7.1903,139.08,139.01,0.51]
[1718888052266,27.1895,139.1,139.02,15.1215]
[1718888052481,7.1894,139.1,139.04,0.17]
[1718888053288,7.1897,139.09,139.03,0.51]
[1718888054592,7.1892,139.1,139.03,0.51]
[1718888054894,7.1893,139.1,139.03,0.34]
[1718888055476,7.1897,139.09,139.03,0.17]
[1718888055678,7.1897,139.09,139.02,15.1215]
[1718888056005,7.1898,139.09,139.02,15.1215]
[1718888057080,21.79,139.08,139.02,15.1215]
[1718888057282,7.1922,139.04,139.02,15.1215]
[1718888057483,7.1928,139.03,139.0,6.5784]
[1718888057796,7.1923,139.04,139.0,6.5784]
[1718888058989,7.1923,139.04,138.98,15.9785]
[1718888059999,21.62,139.06,138.98,15.9785]
[1718888060197,21.62,139.04,138.98,15.9785]
[1718888060378,7.1932,139.02,138.98,15.9785]
[1718888061886,7.1929,139.03,138.98,15.9785]
[1718888062084,7.1924,139.04,138.98,15.9785]
[1718888063499,28.8118,139.05,138.98,15.9785]
[1718888063714,7.1913,139.06,138.98,15.9785]
[1718888063880,7.1916,139.05,138.99,0.17]
[1718888064201,7.1913,139.06,138.99,0.17]
[1718888064495,7.1913,139.06,138.98,15.9785]
[1718888064496,7.1916,139.05,138.98,15.9785]
[1718888064703,21.62,139.04,138.98,15.9785]
[1718888064909,7.1936,139.02,138.98,15.9785]
[1718888065093,7.1937,139.01,138.98,15.9785]
[1718888065480,7.1932,139.02,138.98,15.9785]
[1718888066381,39.6016,139.04,138.96,6.1307]
[1718888066692,7.1939,139.01,138.96,6.1307]
[1718888067090,41.62,139.03,138.96,6.1307]
[1718888067091,7.1943,139.0,138.96,6.1307]
[1718888067514,7.1939,139.01,138.96,6.1307]
[1718888068104,21.62,139.0,138.95,16.4662]
[1718888068399,17.9836,139.02,138.92,22.4751]
[1718888068400,7.1955,138.98,138.92,22.4751]
[1718888068713,21.62,138.99,138.92,22.4751]
[1718888069015,7.1959,138.97,138.92,22.4751]
[1718888069506,21.62,138.98,138.92,22.4751]
[1718888070288,18.3279,138.99,138.92,22.4751]
[1718888070485,27.1954,138.98,138.92,22.4751]
[1718888071528,7.1958,138.97,138.92,22.4751]
[1718888071682,21.62,139.0,138.92,22.4751]
[1718888072005,20.0,138.99,138.92,22.4751]
[1718888072182,7.194,139.01,138.93,0.68]
[1718888072387,16.0625,139.02,138.93,0.17]
[1718888072699,7.1944,139.0,138.93,0.51]
[1718888072891,16.0625,139.02,138.92,22.4751]
[1718888072892,7.195,138.99,138.92,22.4751]
[1718888073214,7.1944,139.0,138.92,22.4751]
[1718888073397,21.62,139.01,138.93,0.17]
[1718888073600,7.195,138.99,138.93,0.17]
[1718888073796,47.72,139.04,138.93,0.34]
[1718888074101,7.1922,139.04,138.96,0.17]
[1718888074410,22.19691823,139.07,138.96,0.68]
[1718888074593,22.19691823,139.07,138.97,6.2667]
[1718888074912,271.374,139.09,138.98,0.34]
[1718888075110,7.1909,139.07,138.99,0.17]
[1718888075486,32.3814,139.1,139.0,0.17]
[1718888075487,7.1903,139.08,139.0,0.17]
[1718888075693,7.1903,139.08,139.0,0.51]
[1718888076510,7.1907,139.07,139.01,16.023]
[1718888076885,7.1907,139.07,139.02,0.17]
[1718888077409,7.1907,139.07,139.01,16.023]
[1718888078806,7.1911,139.06,139.01,16.023]
[1718888079009,7.1921,139.05,139.01,16.023]
[1718888079311,21.62,139.07,138.97,22.8835]
[1718888079809,7.1918,139.05,138.97,22.8835]
[1718888080391,7.1918,139.05,138.98,0.17]
[1718888081309,27.1915,139.06,138.98,0.17]
[1718888081691,7.1916,139.05,138.98,0.17]
[1718888082415,21.62,139.09,138.98,0.34]
[1718888082706,7.1906,139.07,138.99,0.34]
[1718888082907,15.2817,139.11,139.0,0.17]
[1718888082908,7.1902,139.08,139.0,0.17]
[1718888083214,7.1907,139.07,139.0,0.34]
[1718888083405,7.1908,139.07,139.0,0.17]
[1718888083716,7.1904,139.08,139.0,0.34]
[1718888084606,51.56655086,139.12,139.02,15.7346]
[1718888084798,7.1901,139.08,139.02,15.7346]
[1718888085394,7.1897,139.09,139.02,15.7346]
[1718888085615,7.1897,139.09,139.03,0.17]
[1718888085928,41.62,139.11,139.02,15.7346]
[1718888085929,7.1901,139.08,139.02,15.7346]
[1718888087693,39.5939,139.09,139.02,15.7346]
[1718888087894,7.1919,139.05,139.02,15.7346]
[1718888088099,7.1923,139.04,139.02,15.7346]
[1718888088299,7.1915,139.06,138.98,16.305]
[1718888088598,7.1917,139.05,138.98,16.305]
[1718888089013,7.1912,139.06,138.99,0.17]
[1718888089192,7.1908,139.07,138.99,0.34]
[1718888089889,7.1903,139.08,139.01,0.17]
[1718888090088,7.1903,139.08,139.01,0.34]
[1718888090688,7.1898,139.09,139.01,0.34]
[1718888090890,7.1901,139.08,139.01,0.34]
[1718888091714,21.62,139.1,139.01,0.34]
[1718888091918,7.1904,139.08,139.01,0.34]
[1718888092117,7.1919,139.05,138.98,16.305]
[1718888093510,59.5943,139.09,138.98,16.305]
[1718888093717,0.34,139.08,138.99,0.34]
[1718888093916,0.34,139.08,138.98,16.305]
[1718888093917,0.17,139.07,138.98,16.305]
[1718888094123,21.79,139.07,138.98,16.305]
[1718888094311,21.62,139.07,138.99,0.17]
[1718888094618,7.1908,139.07,138.99,0.68]
[1718888095520,7.1911,139.06,138.99,0.68]
[1718888096206,7.1906,139.07,138.99,0.68]
[1718888096410,9.23756654,139.08,138.99,0.68]
[1718888097022,7.1907,139.07,138.99,0.68]
[1718888097222,9.23746654,139.08,138.99,0.68]
[1718888097410,2.04716654,139.08,138.99,20.68]
[1718888097601,41.64246654,139.08,138.99,20.68]
[1718888098821,7.1918,139.05,138.99,20.68]
[1718888099128,7.1912,139.06,138.99,20.68]
[1718888099529,7.1916,139.05,138.99,0.68]
[1718888099729,7.1913,139.06,138.99,0.51]
[1718888099930,21.62,139.06,138.98,16.305]
[1718888100229,7.1924,139.04,138.98,16.305]
[1718888100530,7.1918,139.05,138.98,16.305]
[1718888100925,7.1924,139.04,138.98,16.305]
[1718888101129,21.62,139.06,138.98,16.305]
[1718888101425,7.1938,139.01,138.98,16.305]
[1718888101728,105.2795,139.05,138.98,16.305]
[1718888101729,7.1933,139.02,138.98,16.305]
[1718888102233,7.1929,139.03,138.98,16.305]
[1718888102530,21.62,139.04,138.98,16.305]
[1718888102821,7.1928,139.03,138.98,16.305]
[1718888103027,21.62,139.04,138.98,16.305]
[1718888103228,7.1934,139.02,138.98,16.305]
[1718888103525,7.1934,139.02,138.97,6.2667]
[1718888103526,7.194,139.01,138.97,6.2667]
[1718888104316,28.8123,139.04,138.97,6.2667]
[1718888104522,35.64851763,139.08,138.98,0.17]
[1718888104706,20.0,139.07,138.98,0.51]
[1718888104904,9.23756654,139.08,139.0,15.9663]
[1718888105105,7.1906,139.07,139.0,15.9663]
[1718888105325,7.1914,139.06,139.0,15.9663]
[1718888105527,7.1907,139.07,139.0,15.9663]
[1718888105912,7.1907,139.07,139.01,0.17]
[1718888106429,2.04716654,139.08,139.01,0.51]
[1718888106818,9.23726654,139.08,139.01,0.51]
[1718888107717,2.04716654,139.08,139.02,6.6243]
[1718888107916,2.04716654,139.08,139.04,16.162]
[1718888108133,2.04716654,139.08,139.05,0.17]
[1718888108621,2.04716654,139.08,139.05,0.34]
[1718888109126,2.04716654,139.08,139.05,0.17]
[1718888109306,2.04716654,139.08,139.05,0.68]
[1718888110233,2.04716654,139.08,139.04,16.162]
[1718888110627,7.1887,139.11,139.04,16.162]
[1718888111212,7.1892,139.1,139.04,16.162]
[1718888111539,7.1886,139.11,139.04,16.162]
[1718888111837,7.1881,139.12,139.05,0.34]
[1718888112926,7.1877,139.13,139.05,0.34]
[1718888113524,7.1886,139.11,139.05,0.34]
[1718888113910,7.1886,139.11,139.04,16.162]
[1718888113911,7.1906,139.07,139.04,16.162]
[1718888114117,21.62,139.1,139.02,6.6243]
[1718888114428,7.1926,139.04,139.01,15.6829]
[1718888114607,46.44,139.09,139.01,15.6829]
[1718888114608,7.1927,139.03,139.01,15.6829]
[1718888114809,17.977,139.07,138.99,6.2353]
[1718888115011,7.1927,139.03,138.99,6.2353]
[1718888115638,7.1918,139.05,138.99,6.2353]
[1718888116019,7.1913,139.06,138.99,6.2353]
[1718888116218,7.1907,139.07,139.0,0.17]
[1718888116431,7.1907,139.07,139.0,0.68]
[1718888116610,7.1912,139.06,139.0,0.68]
[1718888117014,67.72,139.09,138.99,6.2353]
[1718888117015,0.17,139.08,138.99,6.2353]
[1718888117214,0.51,139.08,138.99,6.2353]
[1718888117419,7.1918,139.05,138.99,6.2353]
[1718888117726,21.62,139.07,138.99,6.2353]
[1718888118027,7.1916,139.05,138.99,6.2353]
[1718888118215,7.1922,139.04,138.99,6.2353]
[1718888118411,65.6977,139.07,138.99,6.2353]
[1718888118732,7.1924,139.04,138.99,6.2353]
[1718888118929,65.6977,139.07,138.99,6.2353]
[1718888119235,7.1927,139.03,138.99,6.2353]
[1718888119816,7.1922,139.04,138.99,6.2353]
[1718888120031,7.1918,139.05,138.99,6.2353]
[1718888120231,7.1912,139.06,138.99,6.2353]
[1718888120930,20.0,139.09,139.0,0.34]
[1718888121137,7.1906,139.07,139.0,0.34]
[1718888121632,7.1912,139.06,139.0,0.34]
[1718888121835,7.1912,139.06,138.99,6.2353]
[1718888122018,21.62,139.07,138.99,6.2353]
[1718888122217,7.1941,139.01,138.97,15.2204]
[1718888122634,7.1942,139.0,138.97,15.2204]
[1718888122821,39.6005,139.04,138.97,15.2204]
[1718888122822,7.1939,139.01,138.97,15.2204]
[1718888123023,7.1933,139.02,138.97,15.2204]
[1718888123229,39.6005,139.04,138.97,15.2204]
[1718888123430,20.0,139.03,138.97,22.4157]
[1718888123818,41.62,139.03,138.97,15.2204]
[1718888124438,7.1937,139.01,138.97,15.2204]
[1718888125038,7.1942,139.0,138.97,15.2204]
[1718888125245,7.195,138.99,138.95,6.1998]
[1718888125425,7.195,138.99,138.93,16.2649]
[1718888125426,7.1952,138.98,138.93,23.4626]
[1718888126541,21.62,138.98,138.93,16.2649]
[1718888126742,7.1966,138.96,138.93,16.2649]
[1718888127627,7.196,138.97,138.93,16.2649]
[1718888128347,39.6094,138.98,138.93,16.2649]
[1718888128525,59.6107,138.97,138.89,16.5029]
[1718888128727,7.1986,138.92,138.89,16.5029]
[1718888129031,7.1985,138.92,138.89,16.5029]
[1718888129230,7.1981,138.93,138.89,16.5029]
[1718888129444,7.1975,138.94,138.89,23.7027]
[1718888131537,7.198,138.93,138.89,16.5029]
[1718888131943,7.198,138.93,138.89,23.7028]
[1718888132144,7.1975,138.94,138.89,23.7028]
[1718888133128,21.62,138.94,138.87,6.0819]
[1718888133339,7.1989,138.91,138.87,6.0819]
[1718888133852,7.1989,138.91,138.87,13.2828]
[1718888135540,39.6164,138.92,138.83,16.1111]
[1718888135742,20.0,138.91,138.83,16.1111]
[1718888135943,7.2022,138.85,138.83,16.1111]
[1718888136250,39.62,138.89,138.83,16.1111]
[1718888136549,67.72,138.91,138.83,23.3139]
[1718888136748,7.1982,138.93,138.83,16.1111]
[1718888136950,7.1971,138.95,138.9,7.199]
[1718888137143,6.2879,138.98,138.89,16.6648]
[1718888137144,32.3879,138.98,138.89,16.6648]
[1718888137346,27.196,138.97,138.92,7.198]
[1718888137652,20.0,138.97,138.89,16.6648]
[1718888137832,27.1957,138.98,138.9,0.68]
[1718888138035,7.1957,138.98,138.93,7.1975]
[1718888138646,7.1973,138.94,138.9,0.17]
[1718888138845,7.1973,138.94,138.89,23.8643]
[1718888139257,7.197,138.95,138.9,7.1993]
[1718888139554,7.1964,138.96,138.91,7.1988]
[1718888139737,7.1972,138.95,138.9,7.1992]
[1718888139944,7.1972,138.95,138.89,16.6648]
[1718888139945,7.1965,138.96,138.91,7.1988]
[1718888140254,21.62,138.99,138.89,16.6648]
[1718888140558,7.1959,138.97,138.92,7.198]
[1718888140733,7.1963,138.96,138.91,7.1987]
[1718888141249,7.196,138.97,138.92,7.1983]
[1718888141440,293.0056,139.0,138.91,7.1988]
[1718888141441,7.1963,138.96,138.91,7.1988]
[1718888141640,21.62,138.97,138.89,16.6648]
[1718888141842,7.1975,138.94,138.89,23.8643]
[1718888142036,45.51,139.0,138.89,23.8643]
[1718888142037,0.51,139.0,138.89,16.6648]
[1718888142242,0.51,139.0,138.92,7.1981]
[1718888142243,7.1958,138.97,138.92,7.1981]
[1718888142833,7.1963,138.96,138.91,7.1986]
[1718888143257,7.1963,138.96,138.92,7.1983]
[1718888143445,7.1959,138.97,138.92,7.1983]
[1718888144244,7.1973,138.94,138.89,16.6648]
[1718888144455,7.1971,138.95,138.9,7.1993]
[1718888145356,39.6094,138.98,138.91,7.1984]
[1718888145536,7.1964,138.96,138.91,7.1987]
[1718888145738,21.62,138.95,138.89,16.6648]
[1718888145940,7.1983,138.93,138.89,16.6648]
[1718888146235,7.1981,138.93,138.89,16.6648]
[1718888146650,7.1974,138.94,138.9,7.1992]
[1718888146959,7.1979,138.93,138.89,23.8644]
[1718888147563,21.62,138.94,138.89,16.6648]
[1718888147739,7.2003,138.89,138.85,21.6356]
[1718888148061,7.1997,138.9,138.85,28.8373]
[1718888148383,7.1997,138.9,138.86,7.2014]
[1718888148656,7.1997,138.9,138.85,28.8373]
[1718888149044,7.2001,138.89,138.85,21.6356]
[1718888149241,7.1997,138.9,138.85,28.8372]
[1718888149445,7.2,138.89,138.85,28.8372]
[1718888149759,7.1995,138.9,138.86,7.2014]
[1718888150257,7.1995,138.9,138.85,28.8374]
[1718888150456,39.6148,138.93,138.85,21.6356]
[1718888150457,7.1999,138.89,138.85,21.6356]
[1718888150664,7.1999,138.9,138.85,28.8374]
[1718888151237,7.2,138.89,138.85,28.8374]
[1718888151467,21.62,138.93,138.85,21.6356]
[1718888151762,18.1646,138.94,138.88,7.2002]
[1718888151763,7.1984,138.92,138.88,7.2002]
[1718888152547,7.1984,138.92,138.87,7.2007]
[1718888152746,7.1984,138.92,138.85,21.6356]
[1718888152747,21.62,138.96,138.86,0.17]
[1718888152953,7.1976,138.94,138.89,7.1996]
[1718888153475,7.1976,138.94,138.86,0.34]
[1718888153639,7.1991,138.91,138.86,7.2011]
[1718888153836,7.1995,138.9,138.86,7.2011]
[1718888154044,7.1989,138.91,138.86,7.2011]
[1718888154266,7.1985,138.92,138.87,7.2008]
[1718888155577,7.1991,138.91,138.86,7.2014]
[1718888155758,17.9972,138.91,138.85,21.6356]
[1718888156068,7.1997,138.9,138.85,28.8373]
[1718888156782,7.199,138.91,138.86,7.2011]
[1718888157261,7.199,138.91,138.85,21.6356]
[1718888157262,7.1984,138.92,138.87,7.2005]
[1718888157654,7.199,138.91,138.85,21.6356]
[1718888157871,7.1986,138.92,138.87,7.2009]
[1718888158567,21.62,138.93,138.87,7.2009]
[1718888158568,7.1989,138.91,138.87,7.2009]
[1718888159155,39.6159,138.93,138.85,21.6356]
[1718888159365,7.1991,138.91,138.86,7.2012]
[1718888160256,21.62,138.93,138.85,21.6356]
[1718888160567,7.2005,138.88,138.85,15.4024]
[1718888160763,39.6198,138.89,138.82,7.2033]
[1718888160972,39.6198,138.89,138.81,21.3856]
[1718888161170,7.2012,138.87,138.81,21.3856]
[1718888161365,7.2012,138.87,138.82,7.2033]
[1718888161564,28.8205,138.88,138.81,21.3856]
[1718888161868,7.201,138.87,138.83,7.2027]
[1718888163077,7.2007,138.88,138.83,7.2027]
[1718888163387,21.62,138.88,138.81,15.0315]
[1718888163548,7.2023,138.85,138.81,15.0315]
[1718888163968,21.62,138.89,138.82,7.2033]
[1718888164170,6.3452,138.9,138.81,15.0315]
[1718888164171,7.2005,138.88,138.81,15.0315]
[1718888164475,7.2037,138.82,138.79,1.43857765]
[1718888164675,7.2037,138.82,138.78,21.9323]
[1718888164676,7.2039,138.82,138.78,21.9323]
[1718888164977,7.2043,138.81,138.78,21.9323]
[1718888165266,7.2037,138.82,138.78,21.9323]
[1718888165568,7.2042,138.81,138.78,21.9323]
[1718888165770,39.6263,138.84,138.78,21.9323]
[1718888165771,7.2038,138.82,138.78,21.9323]
[1718888169179,7.2038,138.82,138.78,23.1139]
[1718888169554,39.6263,138.84,138.78,15.9084]
[1718888169754,7.2043,138.81,138.78,15.9084]
[1718888170372,7.2043,138.81,138.76,7.2063]
[1718888170677,7.2031,138.83,138.78,7.2055]
[1718888171061,28.8226,138.84,138.79,7.2049]
[1718888171261,21.62,138.86,138.76,0.17]
[1718888171488,21.62,138.86,138.81,7.2038]
[1718888171690,21.62,138.86,138.8,7.2043]
[1718888171977,7.2022,138.85,138.8,7.2043]
[1718888172294,7.2022,138.85,138.81,7.204]
[1718888173155,21.62,138.86,138.81,7.204]
[1718888173573,21.62,138.87,138.81,7.204]
[1718888173764,41.62,138.86,138.81,7.204]
[1718888173966,21.62,138.87,138.81,7.204]
[1718888174169,21.62,138.87,138.76,0.68]
[1718888174376,21.62,138.87,138.76,20.68]
[1718888174574,21.62,138.87,138.79,7.205]
[1718888176359,41.62,138.86,138.79,7.205]
[1718888176555,41.62,138.86,138.76,0.68]
[1718888176764,41.62,138.86,138.8,7.2045]
[1718888177277,41.62,138.86,138.79,7.205]
[1718888177476,0.17,138.85,138.78,7.2053]
[1718888177683,0.34,138.85,138.78,7.2053]
[1718888178259,16.7525,138.85,138.75,22.0526]
[1718888178460,41.96,138.84,138.75,22.0526]
[1718888178679,0.17,138.83,138.75,29.2597]
[1718888178981,0.34,138.83,138.76,7.2066]
[1718888179670,0.17,138.82,138.74,7.2074]
[1718888179870,0.34,138.82,138.74,7.2074]
[1718888180079,0.51,138.82,138.74,7.2074]
[1718888180384,0.51,138.82,138.71,16.1769]
[1718888180556,0.17,138.81,138.71,16.1769]
[1718888180761,0.17,138.8,138.72,7.2082]
[1718888181091,0.51,138.8,138.72,7.2082]
[1718888181397,0.17,138.79,138.72,7.2082]
[1718888181561,0.17,138.78,138.72,7.2082]
[1718888182090,0.34,138.78,138.72,7.2082]
[1718888182261,0.34,138.78,138.73,7.2082]
[1718888182584,21.96,138.78,138.73,7.2082]
[1718888182765,21.96,138.78,138.72,7.2085]
[1718888183268,0.17,138.82,138.75,7.2067]
[1718888183477,0.68,138.82,138.74,7.2074]
[1718888183655,20.68,138.82,138.74,7.2074]
[1718888183859,20.68,138.82,138.71,16.1769]
[1718888184307,21.62,138.81,138.71,16.1769]
[1718888184467,21.62,138.79,138.73,7.2079]
[1718888185485,21.62,138.78,138.73,7.2079]
[1718888187189,0.17,138.8,138.73,7.2079]
[1718888187386,21.62,138.79,138.74,7.2076]
[1718888188173,21.62,138.79,138.73,7.2081]
[1718888188377,21.62,138.79,138.71,16.1769]
[1718888188378,21.62,138.79,138.72,7.2085]
[1718888189093,21.62,138.79,138.73,7.2082]
[1718888189464,21.62,138.79,138.74,7.2075]
[1718888189774,21.62,138.79,138.71,16.1769]
[1718888189775,41.62,138.8,138.75,7.2071]
[1718888189977,41.62,138.8,138.76,7.2066]
[1718888190479,20.0,138.8,138.76,7.2066]
[1718888190671,21.96,138.82,138.75,7.207]
[1718888190871,41.62,138.81,138.75,7.207]
[1718888193087,41.62,138.81,138.74,7.2075]
[1718888193584,0.17,138.8,138.71,16.1769]
[1718888193787,0.68,138.8,138.73,7.2082]
[1718888193984,0.68,138.8,138.72,7.2085]
[1718888194390,0.68,138.8,138.71,16.1769]
[1718888194683,0.68,138.8,138.72,7.2084]
[1718888194889,0.68,138.8,138.73,7.208]
[1718888196388,0.68,138.8,138.72,7.2085]
[1718888196765,21.62,138.78,138.71,16.1769]
[1718888196968,21.62,138.78,138.71,7.209]
[1718888197193,21.62,138.78,138.72,7.2084]
[1718888197794,21.62,138.78,138.68,15.3124]
[1718888197970,21.62,138.78,138.69,20.17]
[1718888198165,21.62,138.78,138.67,7.0453]
[1718888198166,27.6422,138.78,138.7,7.2095]
[1718888198481,27.6422,138.78,138.65,15.3124]
[1718888198482,0.17,138.75,138.65,15.3124]
[1718888198683,0.17,138.75,138.68,7.2105]
[1718888198684,0.51,138.75,138.68,7.2105]
[1718888199075,0.51,138.75,138.69,7.2103]
[1718888199398,21.62,138.74,138.65,15.3124]
[1718888199599,21.62,138.72,138.65,15.3124]
[1718888199895,15.6312,138.73,138.68,7.2107]
[1718888200099,37.2512,138.73,138.68,7.2107]
[1718888200930,37.2512,138.73,138.65,15.3124]
[1718888201092,15.6312,138.73,138.66,0.34]
[1718888201693,15.6312,138.73,138.65,15.4824]
[1718888204205,15.6312,138.73,138.66,0.17]
[1718888204370,15.6312,138.73,138.66,0.51]
[1718888204576,15.6312,138.73,138.66,0.68]
[1718888204784,15.6312,138.73,138.66,0.17]
[1718888205004,15.6312,138.73,138.65,15.3124]
[1718888205912,15.6312,138.73,138.61,15.4919]
[1718888205913,47.8136,138.72,138.61,15.4919]
[1718888206184,47.8136,138.72,138.62,20.0]
[1718888206689,0.51,138.71,138.59,6.4566]
[1718888206907,0.68,138.71,138.6,20.0]
[1718888207407,21.62,138.69,138.58,41.6875]
[1718888207612,20.0,138.68,138.58,41.6875]
[1718888207798,20.0,138.68,138.59,20.0]
[1718888207991,20.0,138.68,138.58,41.6875]
[1718888208887,20.0,138.68,138.58,15.4575]
[1718888209203,20.0,138.68,138.58,41.6875]
[1718888209517,20.0,138.68,138.59,20.0]
[1718888209687,20.0,138.68,138.6,0.34]
[1718888210391,15.6058,138.7,138.61,0.17]
[1718888210708,15.6058,138.7,138.62,0.17]
[1718888210925,15.6058,138.7,138.62,20.51]
[1718888211118,15.6058,138.7,138.63,0.17]
[1718888211504,15.6058,138.7,138.63,0.51]
[1718888212110,15.6058,138.7,138.63,0.17]
[1718888212306,15.6058,138.7,138.62,20.17]
[1718888212714,37.2258,138.7,138.62,20.17]
[1718888212912,15.6058,138.7,138.62,20.17]
[1718888213118,37.2258,138.7,138.62,0.17]
[1718888213298,37.2258,138.7,138.61,20.51]
[1718888215308,37.2258,138.7,138.61,0.51]
[1718888215503,20.0,138.69,138.61,0.51]
[1718888216197,41.62,138.69,138.61,0.17]
[1718888216510,41.62,138.69,138.6,0.68]